{"text_format":"1","workbook":"xlsx","n_sheets":3,"sheets":["Prompt","Cedula4BA","Enviar"],"not_rendered":{"charts":0,"images":4,"macros":1,"external_links":0,"defined_names":0,"comments":1,"pivot_tables":0},"unopened":[],"bounds":{"document_bytes":16777216,"sheet_cells":100000,"rows_first":2000,"rows_last":500,"rows_between":2000,"halvings":0,"cell_chars":16384,"cell_head_chars":4096},"cells_cut":0,"cells_raw":0,"read":"whole","date_system":"1900"}

{"sheet":"Prompt","index":0,"n_rows":38,"n_cols":4,"rows_kept":38,"cut":false,"hidden":false,"merged":[[0,3,1,5],[3,1,5,8],[8,1,9,8],[37,1,38,8]]}
[null,null,null,"¡ATENCIÓN!"]
[]
[]
[null,"Para hacer uso de las funcionalidades de esta Cédula Electrónica debe habilitar macros"]
[]
[]
[]
[]
[null,"Si utiliza Excel 2000, 2002, 2003 siga el siguiente procedimiento:"]
[]
[]
[]
[]
[]
[]
[]
[]
[]
[]
[]
[]
[]
[]
[]
[]
[]
[]
[]
[]
[]
[]
[]
[]
[]
[]
[]
[]
[null,"Si utiliza Excel 2007 siga el siguiente procedimiento:"]

{"sheet":"Cedula4BA","index":1,"n_rows":133,"n_cols":25,"rows_kept":133,"cut":false,"hidden":true,"merged":[[88,2,88,8],[87,2,87,8],[39,2,42,6],[57,2,60,6],[71,2,74,6],[82,3,82,6],[68,3,68,6],[71,7,73,8],[57,7,59,8],[39,7,41,8],[88,9,88,13],[87,21,87,24],[73,23,73,24],[73,17,73,18],[73,13,73,14],[73,19,73,20],[73,21,73,22],[88,14,88,20],[87,14,87,20],[28,13,28,14],[28,19,28,20],[28,21,28,22],[89,2,89,8],[90,21,90,24],[90,14,90,20],[90,9,90,13],[90,2,90,8],[89,9,89,13],[89,14,89,20],[73,15,73,16],[73,11,73,12],[87,9,87,13],[73,9,73,10],[89,21,89,24],[88,21,88,24],[72,17,72,24],[59,13,59,14],[59,21,59,22],[58,9,58,16],[59,19,59,20],[59,11,59,12],[72,9,72,16],[59,9,59,10],[58,17,58,24],[59,23,59,24],[28,23,28,24],[16,7,16,18],[59,17,59,18],[59,15,59,16],[28,11,28,12],[41,15,41,16],[41,17,41,18],[41,23,41,24],[41,13,41,14],[28,15,28,16],[40,17,40,24],[40,9,40,16],[41,9,41,10],[41,11,41,12],[41,21,41,22],[41,19,41,20],[3,6,3,19],[4,6,4,20],[0,21,0,24],[27,9,27,16],[27,17,27,24],[0,6,0,20],[1,21,3,24],[1,6,1,19],[2,6,2,19],[26,2,29,6],[12,7,12,8],[26,7,28,8],[12,21,12,23],[14,7,14,23],[28,9,28,10],[28,17,28,18]]}
[]
[null,null,null,null,null,null,"CENSO EDUCATIVO 2022",null,null,null,null,null,null,null,null,null,null,null,null,null,null,"4BA"]
[null,null,null,null,null,null,"EDUCACIÓN BÁSICA ALTERNATIVA"]
[null,null,null,null,null,null,"AVANZADO"]
[null,null,null," Versión  :",1]
[null,null,"INSTRUCCIONES DEL FORMATO ELECTRÓNICO "]
[]
[]
[]
[null,null,"IDENTIFICACIÓN DEL SERVICIO EDUCATIVO"]
[]
[]
[null,null,"1.  CÓDIGO MODULAR :",null,null,null,null,null,null,null,null,null,null,null,null,"2. CÓDIGO DE LOCAL EDUCATIVO :"]
[]
[null,null,"3.  NOMBRE DEL SERVICIO :",null,null,null,null,""]
[]
[null,null,"4. DISTRITO :",null,null,null,null,""]
[]
[]
[]
[null,null,"5. FORMA DE ATENCIÓN :",null,null,null,null,"CEBA :",null,null,"Presencial",null,null,"Semi-presencial",null,null,null,"PERIFÉRICO : ",null,"Presencial",null,null,"Semi-presencial"]
[]
[]
[null,null,"100. RESULTADO DEL EJERCICIO EDUCATIVO"]
[null,null,"Complete y remita esta sección entre diciembre del año 2022 y enero del año 2023."]
[null,null,"101. RESULTADO DEL EJERCICIO EDUCATIVO A DICIEMBRE DE 2022, POR CICLOS, GRADOS Y SEXO, EN CEBA"]
[null,null,"SITUACIÓN",null,null,null,null,"TOTAL",null,"CEBA"]
[null,null,null,null,null,null,null,null,null,"Presencial",null,null,null,null,null,null,null,"Semi-presencial"]
[null,null,null,null,null,null,null,null,null,"1º",null,"2º",null,"3º",null,"4º",null,"1º",null,"2º",null,"3º",null,"4º"]
[null,null,null,null,null,null,null,"H","M","H","M","H","M","H","M","H","M","H","M","H","M","H","M","H","M"]
["00",null,"  TOTAL - Matriculados",null,null,null,null,{"$f":"SUM(H32:H37)","v":0},0,0,0,0,0,0,0,0,0,0,0,0,0,0,0,0,0]
["01",null,"Promovido de grado",null,null,null,"1/",{"$f":"SUM(J32,L32,N32,P32,R32,T32,V32,X32)","v":0},0]
["02",null,"Promoción guiada",null,null,null,"2/",0,0]
["03",null,"Trasladados a otra IE",null,null,null,"3/",0,0]
["04",null,"Retirados",null,null,null,"4/",0,0]
["05",null,"Fallecidos",null,null,null,null,0,0]
["06",null,"Sin situación final",null,null,null,"5/",0,0]
[]
[null,null,"101. RESULTADO DEL EJERCICIO EDUCATIVO A DICIEMBRE, POR CICLOS, GRADOS Y SEXO, EN PERIFÉRICO"]
[null,null,"SITUACIÓN",null,null,null,null,"TOTAL",null,"PERIFÉRICO"]
[null,null,null,null,null,null,null,null,null,"Presencial",null,null,null,null,null,null,null,"Semi-presencial"]
[null,null,null,null,null,null,null,null,null,"1º",null,"2º",null,"3º",null,"4º",null,"1º",null,"2º",null,"3º",null,"4º"]
[null,null,null,null,null,null,null,"H","M","H","M","H","M","H","M","H","M","H","M","H","M","H","M","H","M"]
["00",null,"  TOTAL - Matriculados",null,null,null,null,{"$f":"SUM(H45:H50)","v":0},0,0,0,0,0,0,0,0,0,0,0,0,0,0,0,0,0]
["01",null,"Promovido de grado",null,null,null,"1/",{"$f":"SUM(J45,L45,N45,P45,R45,T45,V45,X45)","v":0},0]
["02",null,"Promoción guiada",null,null,null,"2/",0,0]
["03",null,"Trasladados a otra IE",null,null,null,"3/",0,0]
["04",null,"Retirados",null,null,null,"4/",0,0]
["05",null,"Fallecidos",null,null,null,null,0,0]
["06",null,"Sin situación final",null,null,null,"5/",0,0]
[null,null,"1/ Promovido de grado: Estudiantes que al término del ejercicio educa vo 2022 fueron considerados aptos para ser promovidos al ciclo inmediato superior."]
[null,null,"2/ Promoción guiada : Estudiantes que serán promovidos de grado, pero que debido a la emergencia sanitaria, no alcanzaron todas las competencias necesarias en el año."]
[null,null,"3/ Trasladados a otra I.E.: Estudiantes que se van a otra I.E. dentro o fuera de la localidad entre abril y diciembre de 2022."]
[null,null,"4/ Retirados: Estudiantes que durante el año académico 2022 dejaron de asistir por diversos motivos y no se encuentran aptos para la evaluación final."]
[null,null,"5/ Sin situación final: Estudiantes que no fueron evaluados o no cuentan con calificaciones en todas las competencias."]
[]
[null,null,"102. RETIRADOS POR GRADO DE ESTUDIO Y SEXO, SEGÚN MOTIVO EN CEBA"]
[null,null,"MOTIVO",null,null,null,null,"TOTAL",null,"CEBA"]
[null,null,null,null,null,null,null,null,null,"Presencial",null,null,null,null,null,null,null,"Semi-presencial"]
[null,null,null,null,null,null,null,null,null,"1º",null,"2º",null,"3º",null,"4º",null,"1º",null,"2º",null,"3º",null,"4º"]
[null,null,null,null,null,null,null,"H","M","H","M","H","M","H","M","H","M","H","M","H","M","H","M","H","M"]
["00",null,"TOTAL RETIRADOS",null,null,null,null,{"$f":"SUM(H63:H69)","v":0},0,0,0,0,0,0,0,0,0,0,0,0,0,0,0,0,0]
["01",null,"Situación económica",null,null,null,null,{"$f":"SUM(J63,L63,N63,P63,R63,T63,V63,X63,Z63,AB63,AD63,AF63,AH63,AJ63,AL63,AN63)","v":0},0]
["02",null,"Violencia",null,null,null,null,0,0]
["03",null,"Enfermedad",null,null,null,null,0,0]
["04",null,"Trabajo infantil",null,null,null,null,0,0]
["05",null,"Apoyo a las labores agrícolas",null,null,null,null,{"$f":"SUM(J67,L67,N67,P67,R67,T67,V67,X67,Z67,AB67,AD67,AF67,AH67,AJ67,AL67,AN67)","v":0},0]
["06",null,"Adicción",null,null,null,null,0,0]
["07",null,"Otros",null,null,null,null,0,0]
[]
[null,null,"102. RETIRADOS POR GRADO DE ESTUDIO Y SEXO, SEGÚN MOTIVO EN PERIFÉRICO"]
[null,null,"MOTIVO",null,null,null,null,"TOTAL",null,"PERIFÉRICO"]
[null,null,null,null,null,null,null,null,null,"Presencial",null,null,null,null,null,null,null,"Semi-presencial"]
[null,null,null,null,null,null,null,null,null,"1º",null,"2º",null,"3º",null,"4º",null,"1º",null,"2º",null,"3º",null,"4º"]
[null,null,null,null,null,null,null,"H","M","H","M","H","M","H","M","H","M","H","M","H","M","H","M","H","M"]
["00",null,"TOTAL RETIRADOS",null,null,null,null,{"$f":"SUM(H77:H83)","v":0},0,0,0,0,0,0,0,0,0,0,0,0,0,0,0,0,0]
["01",null,"Situación económica",null,null,null,null,{"$f":"SUM(J77,L77,N77,P77,R77,T77,V77,X77)","v":0},{"$f":"SUM(K77,M77,O77,Q77,S77,U77,W77,Y77)","v":0}]
["02",null,"Violencia",null,null,null,null,0,0]
["03",null,"Enfermedad",null,null,null,null,0,0]
["04",null,"Trabajo infantil",null,null,null,null,0,0]
["05",null,"Apoyo a las labores agrícolas",null,null,null,null,0,0]
["06",null,"Adicción",null,null,null,null,0,0]
["07",null,"Otros",null,null,null,null,{"$f":"SUM(J83,L83,N83,P83,R83,T83,V83,X83)","v":0},{"$f":"SUM(K83,M83,O83,Q83,S83,U83,W83,Y83)","v":0}]
[null,null,"Nota.- Los totales de esta tabla deben ser iguales a los reportados en el rubro “Retirados” de la tabla 101."]
[]
[null,null,"DATOS DEL DIRECTOR Y/O RESPONSABLE (S) DEL LLENADO DE LA CÉDULA"]
[]
[null,null,"NOMBRES Y APELLIDOS",null,null,null,null,null,null,"CARGO",null,null,null,null,"CORREO ELECTRÓNICO",null,null,null,null,null,null,"TELÉFONO"]
["1"]
["2"]
["3"]
[]
[]
[]
["DIRECTOR(A)"]
["SUB DIRECTOR(A)"]
["DOCENTE"]
["COORDINADOR(A)"]
["ASESOR"]
["ADMINISTRATIVO"]
["ASISTENTE"]
["AUXILIAR"]
["SECRETARIA(O)"]
["ESTADÍSTICO"]
["ESPECIALISTA"]
["BIBLIOTECARIO"]
["CARE"]
["COMANDANTE PNP"]
["CONTADOR"]
["DAIP"]
["DIGITADOR(A)"]
["GERENTE"]
["JEFE ACADÉMICO"]
["JEFE ADMINISTRATIVO"]
["JEFE DE ÁREA"]
["JEFE DE LABORATORIO"]
["JEFE DE PERSONAL"]
["JEFE DE SEDE"]
["JEFE DE UNIDAD"]
["OFICINISTA"]
["OPERADOR DE SISTEMAS"]
["PERSONAL DE SERVICIO"]
["PROGRAMADOR"]
["PROMOTOR(A)"]
["PSICOLOGO"]
["REGISTRADOR(A)"]
["REPRESENTANTE LEGAL"]
["SOPORTE TECNOLOGICO"]
["TÉCNICO ADMINISTRATIVO"]
["TESORERO(A)"]
["TRABAJADOR SOCIAL"]
["TUTOR"]
["OTROS"]

{"sheet":"Enviar","index":2,"n_rows":9,"n_cols":3,"rows_kept":9,"cut":false,"hidden":true,"merged":[[0,0,0,3],[1,0,1,3]]}
["CENSO ESCOLAR 2022"]
["RESULTADO DEL EJERCICIO EDUCATIVO"]
[]
[]
[null,"Paso 1:","Realice el ENVÍO con su clave EOL."]
[]
[null,"Paso 2:","Una vez realizado el ENVÍO,  Revise su constancia de envio."]
[]
[null,"  ADVERTENCIA","Asegúrese de registrar toda la información del nivel informante"]